fUST/lending_fUST_20250812
["ID","MTS","AMOUNT","RATE_DAILY","PERIOD"]
[378694238,1754959840802,-260.8420981,0.0001907,2]
[378694239,1754959840811,-500.0,0.0001907,2]
[378694240,1754959840820,-460.0,0.0001907,2]
[378694241,1754959840829,-1701.99,0.0001907,2]
[378694242,1754959840839,-500.0,0.0001907,2]
[378694243,1754959840848,-460.0,0.0001907,2]
[378694244,1754959840857,-481.58022864,0.0001907,2]
[378694245,1754959840866,-897.18,0.0001907,2]
[378694246,1754959840875,-151.0,0.00019071,2]
[378694247,1754959840884,-500.0,0.00019071,2]
[378694248,1754959840893,-500.0,0.00019071,2]
[378694249,1754959840902,-500.0,0.00019071,2]
[378694250,1754959840912,-151.0,0.00019071,2]
[378694251,1754959840921,-151.0,0.00019071,2]
[378694252,1754959840930,-277.88573075,0.00019071,2]
[378694253,1754959840941,-151.0,0.00019071,2]
[378694254,1754959840952,-420.67332947,0.00019072,2]
[378694255,1754959840961,-460.0,0.00019072,2]
[378694256,1754959840970,-1107.73,0.00019072,2]
[378694257,1754959840980,-460.0,0.00019072,2]
[378694258,1754959840989,-460.0,0.00019072,2]
[378694259,1754959840998,-603.27,0.00019072,2]
[378694260,1754959841007,-597.94,0.00019072,2]
[378694261,1754959841017,-460.0,0.00019072,2]
[378694262,1754959841026,-460.0,0.00019072,2]
[378694263,1754959841036,-460.0,0.00019072,2]
[378694264,1754959841045,-460.0,0.00019072,2]
[378694265,1754959841055,-758.15,0.00019072,2]
[378694266,1754959841063,-460.0,0.00019072,2]
[378694267,1754959841072,-592.25,0.00019072,2]
[378694268,1754959841082,-507.19,0.00019072,2]
[378694269,1754959841091,-460.0,0.00019072,2]
[378694270,1754959841100,-460.0,0.00019072,2]
[378694271,1754959841109,-460.0,0.00019072,2]
[378694272,1754959841119,-208.87473188,0.00019072,2]
[378694273,1754959841128,-460.0,0.00019072,2]
[378694274,1754959841137,-460.0,0.00019072,2]
[378694275,1754959841146,-460.0,0.00019072,2]
[378694276,1754959841156,-460.0,0.00019072,2]
[378694277,1754959841165,-460.0,0.00019072,2]
[378694278,1754959841174,-460.0,0.00019072,2]
[378694279,1754959841184,-460.0,0.00019072,2]
[378694280,1754959841359,-460.0,0.00019072,2]
[378694281,1754959841372,-460.0,0.00019072,2]
[378694282,1754959841381,-460.0,0.00019072,2]
[378694283,1754959841390,-460.0,0.00019072,2]
[378694284,1754959841399,-460.0,0.00019072,2]
[378694285,1754959841409,-460.0,0.00019072,2]
[378694286,1754959841419,-460.0,0.00019072,2]
[378694287,1754959841428,-460.0,0.00019072,2]
[378694288,1754959841438,-460.0,0.00019072,2]
[378694289,1754959841447,-460.0,0.00019072,2]
[378694290,1754959841457,-460.0,0.00019072,2]
[378694291,1754959841466,-460.0,0.00019072,2]
[378694292,1754959841475,-460.0,0.00019072,2]
[378694293,1754959841484,-1017.26,0.00019072,2]
[378694294,1754959841494,-518.83,0.00019072,2]
[378694295,1754959841503,-460.0,0.00019072,2]
[378694296,1754959841512,-460.0,0.00019072,2]
[378694297,1754959841521,-460.0,0.00019072,2]
[378694298,1754959841531,-460.0,0.00019072,2]
[378694299,1754959841540,-460.0,0.00019072,2]
[378694300,1754959841549,-460.0,0.00019072,2]
[378694301,1754959841559,-460.0,0.00019072,2]
[378694302,1754959841568,-460.0,0.00019072,2]
[378694303,1754959841578,-460.0,0.00019072,2]
[378694304,1754959841587,-460.0,0.00019072,2]
[378694305,1754959841596,-460.0,0.00019072,2]
[378694306,1754959841606,-500.0,0.00019072,2]
[378694307,1754959841615,-460.0,0.00019072,2]
[378694308,1754959841624,-460.0,0.00019072,2]
[378694309,1754959841634,-460.0,0.00019072,2]
[378694310,1754959841643,-460.0,0.00019072,2]
[378694311,1754959841653,-631.1,0.00019072,2]
[378694312,1754959841664,-460.0,0.00019072,2]
[378694313,1754959841674,-467.29904304,0.00019072,2]
[378694314,1754959841683,-460.0,0.00019072,2]
[378694315,1754959841692,-460.0,0.00019072,2]
[378694316,1754959841701,-460.0,0.00019072,2]
[378694317,1754959841711,-460.0,0.00019072,2]
[378694318,1754959841720,-527.42,0.00019072,2]
[378694319,1754959841730,-460.0,0.00019072,2]
[378694320,1754959841739,-460.0,0.00019072,2]
[378694321,1754959841749,-460.0,0.00019072,2]
[378694322,1754959841758,-460.0,0.00019072,2]
[378694323,1754959841767,-485.0,0.00019072,2]
[378694324,1754959841777,-460.0,0.00019072,2]
[378694325,1754959841787,-460.0,0.00019072,2]
[378694326,1754959841797,-935.87,0.00019072,2]
[378694327,1754959841806,-464.2112639,0.00019072,2]
[378694328,1754959841816,-460.0,0.00019072,2]
[378694329,1754959841825,-460.0,0.00019072,2]
[378694330,1754959841835,-460.0,0.00019072,2]
[378694331,1754959841844,-460.0,0.00019072,2]
[378694332,1754959841853,-1.88320383,0.00019072,2]
[378694333,1754959842387,-460.0,0.00019069,2]
[378694334,1754959842397,-192.65885198,0.00019069,2]
[378694335,1754959842408,-267.34114802,0.00019069,2]
[378694336,1754959842417,-310.65885198,0.00019072,2]
[378694337,1754959842429,-147.45794419,0.00019072,2]
[378694338,1754959842438,-316.03560309,0.00019072,2]
[378694366,1754959842957,-143.96439691,0.00019072,2]
[378694368,1754959842967,-460.0,0.00019072,2]
[378694370,1754959842976,-460.0,0.00019072,2]
[378694372,1754959842986,-460.0,0.00019072,2]
[378694374,1754959842996,-460.0,0.00019072,2]
[378694376,1754959843005,-650.85,0.00019072,2]
[378694378,1754959843015,-460.0,0.00019072,2]
[378694380,1754959843026,-460.0,0.00019072,2]
[378694382,1754959843035,-460.0,0.00019072,2]
[378694384,1754959843044,-460.0,0.00019072,2]
[378694386,1754959843054,-460.0,0.00019072,2]
[378694388,1754959843063,-460.0,0.00019072,2]
[378694390,1754959843072,-1063.4,0.00019072,2]
[378694392,1754959843082,-460.0,0.00019072,2]
[378694394,1754959843091,-168.60759206,0.00019072,2]
[378694397,1754959843102,-661.87,0.00019072,2]
[378694399,1754959843111,-460.0,0.00019072,2]
[378694401,1754959843120,-460.0,0.00019072,2]
[378694403,1754959843130,-460.0,0.00019072,2]
[378694405,1754959843139,-406.07562561,0.00019072,2]
[378694407,1754959843148,-774.72,0.00019072,2]
[378694409,1754959843157,-462.2,0.00019072,2]
[378694411,1754959843167,-151.0,0.00019072,2]
[378694413,1754959843176,-460.0,0.00019072,2]
[378694415,1754959843186,-151.0,0.00019072,2]
[378694417,1754959843196,-460.0,0.00019072,2]
[378694419,1754959843205,-460.0,0.00019072,2]
[378694421,1754959843214,-500.0,0.00019072,2]
[378694424,1754959843223,-221.76112064,0.00019072,2]
[378694427,1754959843233,-460.0,0.00019072,2]
[378694430,1754959843245,-460.0,0.00019072,2]
[378694432,1754959843255,-460.0,0.00019072,2]
[378694434,1754959843264,-460.0,0.00019072,2]
[378694436,1754959843273,-1830.6,0.00019072,2]
[378694438,1754959843283,-460.0,0.00019072,2]
[378694440,1754959843293,-479.30372772,0.00019072,2]
[378694442,1754959843304,-460.0,0.00019072,2]
[378694444,1754959843315,-460.0,0.00019072,2]
[378694446,1754959843325,-460.0,0.00019072,2]
[378694448,1754959843336,-460.0,0.00019072,2]
[378694450,1754959843351,-473.2,0.00019072,2]
[378694452,1754959843361,-460.0,0.00019072,2]
[378694454,1754959843370,-460.0,0.00019072,2]
[378694456,1754959843380,-460.0,0.00019072,2]
[378694458,1754959843389,-460.0,0.00019072,2]
[378694460,1754959843399,-500.0,0.00019072,2]
[378694462,1754959843408,-500.0,0.00019072,2]
[378694464,1754959843418,-460.0,0.00019072,2]
[378694467,1754959843427,-460.0,0.00019072,2]
[378694469,1754959843437,-460.0,0.00019072,2]
[378694470,1754959843446,-626.37,0.00019072,2]
[378694472,1754959843456,-460.0,0.00019072,2]
[378694474,1754959843465,-460.0,0.00019072,2]
[378694476,1754959843475,-555.8,0.00019072,2]
[378694479,1754959843485,-3083.72,0.00019072,2]
[378694481,1754959843494,-12797.6,0.00019072,2]
[378694483,1754959843505,-500.79878194,0.00019073,2]
[378694485,1754959843516,-212.86212496,0.00019073,2]
[378694486,1754959843527,-500.0,0.00019073,2]
[378694488,1754959843536,-500.0,0.00019073,2]
[378694490,1754959843546,-460.0,0.00019073,2]
[378694492,1754959843556,-460.0,0.00019073,2]
[378694494,1754959843566,-460.0,0.00019073,2]
[378694497,1754959843575,-460.0,0.00019073,2]
[378694498,1754959843585,-460.0,0.00019073,2]
[378694500,1754959843594,-712.88,0.00019073,2]
[378694503,1754959843603,-463.80540098,0.00019073,2]
[378694504,1754959843612,-463.30526735,0.00019073,2]
[378694507,1754959843621,-460.0,0.00019073,2]
[378694509,1754959843631,-460.0,0.00019073,2]
[378694511,1754959843640,-460.0,0.00019073,2]
[378694513,1754959843650,-460.0,0.00019073,2]
[378694515,1754959843660,-460.0,0.00019073,2]
[378694516,1754959843670,-460.0,0.00019073,2]
[378694518,1754959843680,-460.0,0.00019073,2]
[378694520,1754959843690,-460.0,0.00019073,2]
[378694522,1754959843700,-485.01,0.00019073,2]
[378694525,1754959843710,-460.0,0.00019073,2]
[378694526,1754959843719,-460.0,0.00019073,2]
[378694528,1754959843729,-460.0,0.00019073,2]
[378694531,1754959843738,-460.0,0.00019073,2]
[378694532,1754959843748,-477.02278304,0.00019073,2]
[378694534,1754959843758,-229.22483265,0.00019073,2]
[378694536,1754959843768,-460.0,0.00019073,2]
[378694538,1754959843778,-460.0,0.00019073,2]
[378694540,1754959843787,-521.49,0.00019073,2]
[378694542,1754959843796,-460.0,0.00019073,2]
[378694549,1754959843806,-460.0,0.00019073,2]
[378694551,1754959843862,-357.05511494,0.00019073,2]
[378694553,1754959843872,-460.0,0.00019073,2]
[378694555,1754959843882,-460.0,0.00019073,2]
[378694557,1754959843891,-460.0,0.00019073,2]
[378694559,1754959843901,-569.87475365,0.00019073,2]
[378694561,1754959843910,-460.0,0.00019073,2]
[378694563,1754959843919,-460.0,0.00019073,2]
[378694565,1754959843928,-460.0,0.00019073,2]
[378694567,1754959843939,-1000.0,0.00019073,2]
[378694569,1754959843948,-460.0,0.00019073,2]
[378694571,1754959843957,-460.0,0.00019073,2]
[378694573,1754959843966,-477.04698681,0.00019073,2]
[378694575,1754959843975,-460.0,0.00019073,2]
[378694577,1754959843985,-460.0,0.00019073,2]
[378694579,1754959843994,-460.0,0.00019073,2]
[378694581,1754959844003,-460.0,0.00019073,2]
[378694583,1754959844012,-463.54142439,0.00019073,2]
[378694585,1754959844022,-456.59073452,0.00019073,2]
[378694587,1754959844031,-460.0,0.00019073,2]
[378694589,1754959844040,-460.0,0.00019073,2]
[378694591,1754959844050,-460.0,0.00019073,2]
[378694593,1754959844059,-460.0,0.00019073,2]
[378694595,1754959844068,-460.0,0.00019073,2]
[378694597,1754959844078,-460.0,0.00019073,2]
[378694599,1754959844087,-460.0,0.00019073,2]
[378694601,1754959844096,-460.0,0.00019073,2]
[378694603,1754959844105,-460.0,0.00019073,2]
[378694605,1754959844114,-460.0,0.00019073,2]
[378694607,1754959844124,-460.0,0.00019073,2]
[378694609,1754959844133,-460.0,0.00019073,2]
[378694610,1754959844142,-460.0,0.00019073,2]
[378694612,1754959844152,-500.0,0.00019073,2]
[378694614,1754959844161,-500.90729538,0.00019074,2]
[378694616,1754959844170,-460.0,0.00019074,2]
[378694619,1754959844179,-546.46,0.00019074,2]
[378694620,1754959844189,-2526.4,0.00019074,2]
[378694622,1754959844199,-1956.06,0.00019074,2]
[378694625,1754959844209,-1398.74,0.00019074,2]
[378694627,1754959844219,-539.81,0.00019074,2]
[378694629,1754959844228,-460.0,0.00019074,2]
[378694631,1754959844238,-460.0,0.00019074,2]
[378694633,1754959844250,-3598.78,0.00019074,2]
[378694635,1754959844260,-460.0,0.00019074,2]
[378694636,1754959844269,-460.0,0.00019074,2]
[378694638,1754959844279,-3359.99,0.00019074,2]
[378694640,1754959844289,-500.0,0.00019175,2]
[378694642,1754959844299,-151.0,0.00019178,2]
[378694645,1754959844308,-151.0,0.00019178,2]
[378694646,1754959844319,-666.0,0.00019178,2]
[378694648,1754959844328,-224.24931077,0.00019243,2]
[378694650,1754959844338,-299.6,0.00019269,2]
[378694652,1754959844352,-460.0,0.00019342,2]
[378694654,1754959844362,-550.83,0.00019342,2]
[378694656,1754959844371,-680.72,0.00019342,2]
[378694658,1754959844380,-2336.91,0.00019342,2]
[378694660,1754959844389,-1398.25,0.00019342,2]
[378694662,1754959844399,-460.0,0.00019342,2]
[378694664,1754959844407,-460.0,0.00019342,2]
[378694666,1754959844417,-460.0,0.00019342,2]
[378694668,1754959844426,-4331.58,0.00019342,2]
[378694670,1754959844435,-460.0,0.00019342,2]
[378694672,1754959844444,-460.0,0.00019342,2]
[378694674,1754959844453,-577.7,0.00019342,2]
[378694676,1754959844462,-658.32,0.00019343,2]
[378694678,1754959844471,-460.0,0.00019343,2]
[378694680,1754959844480,-460.0,0.00019343,2]
[378694682,1754959844489,-604.80092668,0.00019343,2]
[378694684,1754959844500,-460.0,0.00019343,2]
[378694686,1754959844509,-460.0,0.00019343,2]
[378694688,1754959844518,-5545.35,0.00019343,2]
[378694690,1754959844527,-460.0,0.00019343,2]
[378694692,1754959844536,-464.31,0.00019343,2]
[378694694,1754959844546,-460.0,0.00019343,2]
[378694696,1754959844556,-460.0,0.00019343,2]
[378694698,1754959844565,-873.58,0.00019343,2]
[378694700,1754959844575,-753.49,0.00019343,2]
[378694702,1754959844584,-460.0,0.00019343,2]
[378694704,1754959844593,-460.0,0.00019343,2]
[378694706,1754959844602,-3647.97,0.00019343,2]
[378694708,1754959844612,-460.0,0.00019343,2]
[378694710,1754959844621,-460.0,0.00019343,2]
[378694712,1754959844630,-1305.54,0.00019343,2]
[378694714,1754959844639,-460.0,0.00019343,2]
[378694716,1754959844648,-460.0,0.00019343,2]
[378694718,1754959844658,-460.0,0.00019343,2]
[378694720,1754959844668,-460.0,0.00019343,2]
[378694722,1754959844678,-460.0,0.00019343,2]
[378694724,1754959844688,-460.0,0.00019343,2]
[378694726,1754959844697,-460.0,0.00019343,2]
[378694728,1754959844706,-1129.44,0.00019343,2]
[378694730,1754959844719,-161.3641734,0.00019343,2]
[378694732,1754959844737,-460.0,0.00019343,2]
[378694734,1754959844755,-964.47,0.00019343,2]
[378694736,1754959844764,-460.0,0.00019343,2]
[378694738,1754959844773,-3115.19,0.00019343,2]
[378694740,1754959844782,-460.0,0.00019343,2]
[378694742,1754959844792,-1380.3,0.00019343,2]
[378694744,1754959844801,-465.54300267,0.00019343,2]
[378694746,1754959844811,-460.0,0.00019343,2]
[378694748,1754959844820,-460.0,0.00019343,2]
[378694750,1754959844829,-460.0,0.00019343,2]
[378694752,1754959844839,-460.0,0.00019343,2]
[378694754,1754959844848,-460.0,0.00019343,2]
[378694756,1754959844857,-4267.02,0.00019343,2]
[378694758,1754959844866,-463.58381569,0.00019343,2]
[378694760,1754959844875,-460.0,0.00019343,2]
[378694761,1754959844885,-467.18,0.00019343,2]
[378694762,1754959844894,-460.0,0.00019343,2]
[378694763,1754959844903,-460.0,0.00019343,2]
[378694765,1754959844912,-1548.4,0.00019343,2]
[378694767,1754959844921,-460.0,0.00019343,2]
[378694769,1754959844931,-1860.02,0.00019343,2]
[378694771,1754959844941,-460.0,0.00019343,2]
[378694773,1754959844950,-460.0,0.00019343,2]
[378694775,1754959844961,-2163.34,0.00019343,2]
[378694777,1754959844970,-331.94744192,0.00019343,2]
[378694779,1754959844979,-460.0,0.00019343,2]
[378694781,1754959844987,-460.0,0.00019343,2]
[378694783,1754959844996,-460.0,0.00019343,2]
[378694784,1754959845006,-570.02383383,0.00019343,2]
[378694786,1754959845016,-460.0,0.00019343,2]
[378694788,1754959845025,-460.0,0.00019343,2]
[378694790,1754959845034,-460.0,0.00019343,2]
[378694792,1754959845042,-460.0,0.00019343,2]
[378694794,1754959845051,-1112.78,0.00019343,2]
[378694797,1754959845060,-460.0,0.00019343,2]
[378694799,1754959845070,-1156.07,0.00019343,2]
[378694801,1754959845079,-460.0,0.00019343,2]
[378694803,1754959845087,-460.0,0.00019343,2]
[378694805,1754959845096,-460.0,0.00019343,2]
[378694807,1754959845106,-460.0,0.00019343,2]
[378694809,1754959845115,-500.0,0.00019344,2]
[378694811,1754959845124,-500.0,0.00019344,2]
[378694813,1754959845133,-557.0,0.00019344,2]
[378694815,1754959845144,-500.0,0.00019344,2]
[378694817,1754959845154,-500.0,0.00019344,2]
[378694819,1754959845163,-500.0,0.00019344,2]
[378694821,1754959845172,-500.0,0.00019344,2]
[378694823,1754959845182,-500.0,0.00019344,2]
[378694825,1754959845193,-151.0,0.00019344,2]
[378694827,1754959845202,-500.0,0.00019344,2]
[378694829,1754959845211,-567.26531351,0.00019344,2]
[378694831,1754959845221,-500.0,0.00019344,2]
[378694833,1754959845230,-151.0,0.00019344,2]
[378694835,1754959845241,-151.0,0.00019344,2]
[378694837,1754959845253,-151.0,0.00019344,2]
[378694839,1754959845262,-500.0,0.00019344,2]
[378694841,1754959845271,-500.0,0.00019344,2]
[378694843,1754959845281,-706.29,0.00019344,2]
[378694845,1754959845291,-380.18313724,0.00019344,2]
[378694847,1754959845304,-460.0,0.00019344,2]
[378694849,1754959845314,-460.0,0.00019344,2]
[378694851,1754959845324,-1059.27,0.00019344,2]
[378694854,1754959845334,-753.71,0.00019344,2]
[378694856,1754959845343,-551.21286829,0.00019344,2]
[378694857,1754959845352,-460.0,0.00019344,2]
[378694860,1754959845362,-460.0,0.00019344,2]
[378694862,1754959845372,-460.0,0.00019344,2]
[378694864,1754959845381,-460.0,0.00019344,2]
[378694866,1754959845390,-507.42,0.00019344,2]
[378694868,1754959845400,-489.94,0.00019344,2]
[378694870,1754959845409,-460.0,0.00019344,2]
[378694872,1754959845418,-1216.19,0.00019344,2]
[378694874,1754959845428,-460.0,0.00019344,2]
[378694876,1754959845437,-1003.25,0.00019344,2]
[378694878,1754959845447,-813.88,0.00019344,2]
[378694880,1754959845456,-460.0,0.00019344,2]
[378694882,1754959845466,-701.73,0.00019344,2]
[378694884,1754959845476,-518.43,0.00019344,2]
[378694886,1754959845485,-460.0,0.00019344,2]
[378694888,1754959845494,-460.0,0.00019344,2]
[378694890,1754959845504,-638.23,0.00019344,2]
[378694892,1754959845513,-437.33058615,0.00019344,2]
[378694894,1754959845522,-1053.34,0.00019344,2]
[378694896,1754959845532,-533.79313914,0.00019344,2]
[378694898,1754959845541,-460.0,0.00019344,2]
[378694900,1754959845552,-460.0,0.00019344,2]
[378694902,1754959845562,-460.0,0.00019344,2]
[378694904,1754959845572,-460.0,0.00019344,2]
[378694906,1754959845581,-460.0,0.00019344,2]
[378694908,1754959845590,-966.74,0.00019344,2]
[378694910,1754959845599,-460.0,0.00019344,2]
[378694912,1754959845608,-460.0,0.00019344,2]
[378694914,1754959845617,-460.0,0.00019344,2]
[378694916,1754959845627,-460.0,0.00019344,2]
[378694918,1754959845636,-486.72,0.00019344,2]
[378694920,1754959845646,-460.0,0.00019344,2]
[378694922,1754959845654,-1072.79,0.00019344,2]
[378694924,1754959845663,-483.96,0.00019344,2]
[378694926,1754959845672,-568.71,0.00019344,2]
[378694928,1754959845681,-460.0,0.00019344,2]
[378694930,1754959845692,-460.0,0.00019344,2]
[378694932,1754959845701,-460.0,0.00019344,2]
[378694934,1754959845710,-1750.38,0.00019344,2]
[378694937,1754959845730,-696.39,0.00019344,2]
[378694939,1754959845739,-575.06,0.00019344,2]
[378694941,1754959845749,-460.0,0.00019344,2]
[378694943,1754959845758,-962.94,0.00019344,2]
[378694945,1754959845767,-559.49,0.00019344,2]
[378694947,1754959845777,-460.0,0.00019344,2]
[378694949,1754959845786,-298.73074238,0.00019344,2]
[378694951,1754959845796,-728.67,0.00019344,2]
[378694953,1754959845805,-1251.27,0.00019344,2]
[378694955,1754959845814,-460.0,0.00019344,2]
[378694957,1754959845824,-929.97,0.00019344,2]
[378694959,1754959845834,-954.4,0.00019344,2]
[378694961,1754959845844,-423.40433545,0.00019344,2]
[378694963,1754959845855,-460.0,0.00019344,2]
[378694965,1754959845864,-460.0,0.00019344,2]
[378694968,1754959845874,-460.0,0.00019344,2]
[378694970,1754959845884,-2140.46,0.00019344,2]
[378694972,1754959845894,-942.88,0.00019344,2]
[378694974,1754959845904,-460.0,0.00019344,2]
[378694976,1754959845914,-1193.89,0.00019344,2]
[378694978,1754959845924,-2518.51,0.00019344,2]
[378694980,1754959845934,-460.0,0.00019344,2]
[378694982,1754959845944,-2976.54,0.00019344,2]
[378694984,1754959845954,-555.47,0.00019344,2]
[378694986,1754959845963,-460.0,0.00019344,2]
[378694989,1754959845974,-3649.34,0.00019344,2]
[378694991,1754959845983,-460.0,0.00019344,2]
[378694993,1754959845993,-460.0,0.00019344,2]
[378694995,1754959846003,-565.04,0.00019344,2]
[378694997,1754959846013,-460.0,0.00019344,2]
[378694999,1754959846023,-460.0,0.00019344,2]
[378695001,1754959846033,-460.0,0.00019344,2]
[378695003,1754959846043,-725.85,0.00019344,2]
[378695005,1754959846053,-460.0,0.00019344,2]
[378695007,1754959846063,-975.14,0.00019344,2]
[378695009,1754959846072,-1560.15,0.00019344,2]
[378695012,1754959846082,-1159.85,0.00019344,2]
[378695014,1754959846092,-3296.48,0.00019344,2]
[378695016,1754959846102,-460.0,0.00019344,2]
[378695018,1754959846111,-744.37,0.00019344,2]
[378695020,1754959846121,-460.0,0.00019344,2]
[378695022,1754959846131,-460.0,0.00019344,2]
[378695024,1754959846141,-460.0,0.00019344,2]
[378695026,1754959846150,-460.0,0.00019344,2]
[378695028,1754959846160,-1460.16,0.00019344,2]
[378695030,1754959846169,-460.0,0.00019344,2]
[378695032,1754959846179,-460.0,0.00019344,2]
[378695034,1754959846189,-832.37,0.00019344,2]
[378695036,1754959846199,-460.0,0.00019344,2]
[378695039,1754959846208,-558.26,0.00019344,2]
[378695041,1754959846218,-1640.47,0.00019344,2]
[378695044,1754959846228,-1267.95,0.00019344,2]
[378695046,1754959846238,-460.0,0.00019344,2]
[378695048,1754959846252,-460.0,0.00019344,2]
[378695050,1754959846262,-1701.99,0.00019344,2]
[378695052,1754959846272,-460.0,0.00019344,2]
[378695054,1754959846285,-897.18,0.00019344,2]
[378695056,1754959846295,-151.0,0.00019345,2]
[378695058,1754959846305,-500.0,0.00019345,2]
[378695060,1754959846315,-500.0,0.00019345,2]
[378695062,1754959846325,-500.0,0.00019345,2]
[378695064,1754959846335,-151.0,0.00019345,2]
[378695067,1754959846349,-151.0,0.00019345,2]
[378695069,1754959846359,-151.0,0.00019345,2]
[378695071,1754959846369,-627.52,0.00019345,2]
[378695073,1754959846379,-151.0,0.00019346,2]
[378695075,1754959846389,-151.0,0.00019346,2]
[378695077,1754959846399,-500.0,0.00019346,2]
[378695080,1754959846409,-460.0,0.00019346,2]
[378695082,1754959846419,-1107.73,0.00019346,2]
[378695084,1754959846429,-460.0,0.00019346,2]
[378695086,1754959846439,-603.27,0.00019346,2]
[378695088,1754959846450,-597.94,0.00019346,2]
[378695090,1754959846460,-460.0,0.00019346,2]
[378695092,1754959846470,-460.0,0.00019346,2]
[378695094,1754959846480,-758.15,0.00019346,2]
[378695096,1754959846491,-460.0,0.00019346,2]
[378695098,1754959846501,-592.25,0.00019346,2]
[378695101,1754959846513,-507.19,0.00019346,2]
[378695103,1754959846524,-460.0,0.00019346,2]
[378695105,1754959846534,-460.0,0.00019346,2]
[378695107,1754959846544,-409.97070408,0.00019346,2]
[378695109,1754959846553,-460.0,0.00019346,2]
[378695111,1754959846563,-460.0,0.00019346,2]
[378695113,1754959846574,-460.0,0.00019346,2]
[378695115,1754959846584,-460.0,0.00019346,2]
[378695118,1754959846594,-460.0,0.00019346,2]
[378695120,1754959846604,-460.0,0.00019346,2]
[378695122,1754959846614,-460.0,0.00019346,2]
[378695124,1754959846624,-460.0,0.00019346,2]
[378695126,1754959846634,-518.83,0.00019346,2]
[378695128,1754959846644,-460.0,0.00019346,2]
[378695130,1754959846654,-460.0,0.00019346,2]
[378695132,1754959846664,-460.0,0.00019346,2]
[378695134,1754959846674,-591.24134132,0.00019346,2]
[378695136,1754959846684,-460.0,0.00019346,2]
[378695138,1754959846695,-460.0,0.00019346,2]
[378695141,1754959846705,-522.72509993,0.00019346,2]
[378695143,1754959846716,-460.0,0.00019346,2]
[378695145,1754959846725,-460.0,0.00019346,2]
[378695147,1754959846736,-500.0,0.00019346,2]
[378695149,1754959846746,-460.0,0.00019346,2]
[378695151,1754959846756,-460.0,0.00019346,2]
[378695153,1754959846766,-460.0,0.00019346,2]
[378695155,1754959846776,-460.0,0.00019346,2]
[378695157,1754959846786,-631.1,0.00019346,2]
[378695160,1754959846798,-460.0,0.00019346,2]
[378695162,1754959846810,-460.0,0.00019346,2]
[378695164,1754959846820,-464.92973893,0.00019346,2]
[378695166,1754959846830,-460.0,0.00019346,2]
[378695168,1754959846841,-460.0,0.00019346,2]
[378695170,1754959846851,-527.42,0.00019346,2]
[378695173,1754959846861,-460.0,0.00019346,2]
[378695175,1754959846871,-460.0,0.00019346,2]
[378695177,1754959846882,-485.0,0.00019346,2]
[378695179,1754959846892,-472.22931958,0.00019346,2]
[378695181,1754959846902,-460.0,0.00019346,2]